bitfinex-derivatives/quotes_ETHF0:USTF0_20260123
["timestamp","ask_amount","ask_price","bid_price","bid_amount"]
[1769165925727,0.8744982,2931.9,2931.1,0.91168215]
[1769165925927,0.8744982,2931.8,2931.1,0.91168215]
[1769165926122,0.17073,2932.2,2931.1,0.91168215]
[1769165926328,0.17073,2932.2,2931.4,0.91168215]
[1769165926329,0.87450223,2932.1,2931.4,0.91168215]
[1769165926533,0.87450223,2932.0,2931.4,0.91168215]
[1769165926727,0.17073,2932.2,2931.4,0.91168215]
[1769165926928,0.8744863,2932.1,2931.4,0.91168215]
[1769165927135,0.8744863,2932.0,2931.4,0.91168215]
[1769165927439,0.17073,2932.2,2931.4,0.91168215]
[1769165927640,0.87450277,2932.1,2931.4,0.91168215]
[1769165927838,0.87450277,2932.0,2931.4,0.91168215]
[1769165928040,0.17073,2932.2,2931.4,0.91168215]
[1769165928238,0.87450982,2932.1,2931.4,0.91168215]
[1769165928539,0.87450982,2932.0,2931.4,0.91168215]
[1769165928840,0.00510838,2932.4,2931.4,0.91168215]
[1769165929040,0.87453997,2932.3,2931.4,0.91168215]
[1769165929237,0.87453997,2932.2,2931.4,0.91168215]
[1769165929437,0.87453997,2932.1,2931.4,0.91168215]
[1769165929638,0.87453997,2932.0,2931.4,0.91168215]
[1769165929838,0.00510838,2932.4,2931.4,0.91168215]
[1769165930042,0.87458013,2932.3,2931.4,0.91168215]
[1769165930338,0.87458013,2932.2,2931.4,0.91168215]
[1769165930537,0.87458013,2932.1,2931.4,0.91168215]
[1769165930738,0.87458013,2932.0,2931.4,0.91168215]
[1769165930939,0.00510838,2932.4,2931.4,0.91168215]
[1769165931142,0.87462934,2932.3,2931.4,0.91168215]
[1769165931342,0.87462934,2932.2,2931.4,0.91168215]
[1769165931533,0.87462934,2932.1,2931.4,0.91168215]
[1769165931736,0.87462934,2932.0,2931.4,0.91168215]
[1769165931938,0.00510838,2932.4,2931.4,0.91168215]
[1769165932139,0.87468981,2932.3,2931.4,0.91168215]
[1769165932340,0.87468981,2932.2,2931.4,0.91168215]
[1769165932540,0.87468981,2932.1,2931.4,0.91168215]
[1769165932739,0.87468981,2932.0,2931.4,0.91168215]
[1769165932941,0.00510838,2932.4,2931.4,0.91168215]
[1769165933143,0.87472598,2932.3,2931.4,0.91168215]
[1769165933342,0.87472598,2932.2,2931.4,0.91168215]
[1769165933542,0.87472598,2932.1,2931.4,0.91168215]
[1769165933741,0.87472598,2932.0,2931.4,0.91168215]
[1769165933942,0.00510838,2932.4,2931.4,0.91168215]
[1769165934149,0.87473821,2932.3,2931.4,0.91168215]
[1769165934346,0.87473821,2932.2,2931.4,0.91168215]
[1769165934542,0.87473821,2932.1,2931.4,0.91168215]
[1769165934850,0.87473821,2932.0,2931.1,0.15039054]
[1769165935044,0.00510838,2932.4,2931.1,0.15039054]
[1769165935245,0.87435096,2932.3,2931.1,0.15039054]
[1769165935445,0.87435096,2932.2,2931.1,0.15039054]
[1769165935646,0.87435096,2932.1,2931.1,0.15039054]
[1769165935848,0.87435096,2932.0,2931.1,0.15039054]
[1769165936050,0.00510838,2932.4,2931.1,0.15039054]
[1769165936248,0.87436464,2932.3,2931.1,0.15039054]
[1769165936549,0.87436464,2932.2,2931.1,0.15039054]
[1769165936849,0.00510838,2932.4,2931.3,0.15039054]
[1769165940950,0.00510838,2932.4,2931.4,0.15039054]
[1769165943756,0.00510838,2932.4,2931.2,3.3201616]
[1769165944056,0.00510838,2932.4,2931.2,3.46078896]
[1769165944953,0.00510838,2932.4,2931.3,0.14062736]
[1769165954063,0.00296727,2932.8,2931.7,0.1404173]
[1769165957768,0.14468857,2932.8,2931.6,0.00511718]
[1769165958062,0.87214957,2932.7,2931.6,0.00511718]
[1769165958258,0.14468857,2932.8,2931.6,0.00511718]
[1769165958459,0.87227101,2932.7,2931.6,0.00511718]
[1769165958662,0.14468857,2932.8,2931.6,0.00511718]
[1769165958862,0.872278,2932.7,2931.6,0.00511718]
[1769165959062,0.14468857,2932.8,2931.6,0.00511718]
[1769165959264,0.87227464,2932.7,2931.6,0.00511718]
[1769165959459,0.87227464,2932.6,2931.6,0.00511718]
[1769165959661,0.14468857,2932.8,2931.6,0.00511718]
[1769165959860,0.8723746,2932.7,2931.6,0.00511718]
[1769165960061,0.8723746,2932.6,2931.6,0.00511718]
[1769165960262,0.14468857,2932.8,2931.6,0.00511718]
[1769165960463,0.87247622,2932.7,2931.6,0.00511718]
[1769165960664,0.87247622,2932.6,2931.6,0.00511718]
[1769165960868,0.14468857,2932.8,2931.6,0.00511718]
[1769165961161,0.87246972,2932.7,2931.6,0.00511718]
[1769165961371,0.87246972,2932.6,2931.6,0.00511718]
[1769165961560,0.14468857,2932.8,2931.6,0.00511718]
[1769165961761,0.87260395,2932.7,2931.6,0.00511718]
[1769165961965,0.87260395,2932.6,2931.6,0.00511718]
[1769165962167,0.14468857,2932.8,2931.6,0.00511718]
[1769165962466,0.87260571,2932.7,2931.6,0.00511718]
[1769165962667,0.87260571,2932.6,2931.6,0.00511718]
[1769165962864,0.14468857,2932.8,2931.6,0.00511718]
[1769165963064,0.87275611,2932.7,2931.6,0.00511718]
[1769165963266,0.87275611,2932.6,2931.6,0.00511718]
[1769165963468,0.14468857,2932.8,2931.6,0.00511718]
[1769165963663,0.87292744,2932.7,2931.6,0.00511718]
[1769165963862,0.87292744,2932.6,2931.6,0.00511718]
[1769165964061,0.14468857,2932.8,2931.6,0.00511718]
[1769165964266,0.87292743,2932.7,2931.6,0.00511718]
[1769165964461,0.87292743,2932.6,2931.6,0.14553448]
[1769165964668,0.00296727,2932.8,2931.6,0.14553448]
[1769165964859,0.87283539,2932.7,2931.7,0.1404173]
[1769165965064,0.00296727,2932.8,2931.7,0.1404173]
[1769165966468,0.87304153,2932.7,2931.7,0.1404173]
[1769165966668,0.87304153,2932.6,2931.7,0.1404173]
[1769165966868,0.00296727,2932.8,2931.7,0.1404173]
[1769165967170,0.87334953,2932.7,2931.7,0.1404173]
[1769165967367,0.87334953,2932.6,2931.7,0.1404173]
[1769165967558,0.87334953,2932.5,2931.7,0.1404173]
[1769165967764,0.00296727,2932.8,2931.7,0.1404173]
[1769165967965,0.87336617,2932.7,2931.7,0.1404173]
[1769165968262,0.87336617,2932.6,2931.7,0.1404173]
[1769165968463,0.87336617,2932.5,2931.7,0.1404173]
[1769165968664,0.00296727,2932.8,2931.7,0.1404173]
[1769165968864,0.87339172,2932.7,2931.7,0.1404173]
[1769165969175,0.87339172,2932.6,2931.7,0.1404173]
[1769165969374,0.87339172,2932.5,2931.7,0.1404173]
[1769165969569,0.00296727,2932.8,2931.7,0.1404173]
[1769165969873,0.87342577,2932.7,2931.7,0.1404173]
[1769165970073,0.87342577,2932.6,2931.7,0.1404173]
[1769165970372,0.87342577,2932.5,2931.7,0.1404173]
[1769165970572,0.00296727,2932.8,2931.7,0.1404173]
[1769165970869,0.8734241,2932.7,2931.7,0.1404173]
[1769165971072,0.8734241,2932.6,2931.7,0.1404173]
[1769165971372,0.8734241,2932.5,2931.7,0.1404173]
[1769165971566,0.00296727,2932.8,2931.7,0.1404173]
[1769165971763,0.87340639,2932.7,2931.7,0.1404173]
[1769165971970,0.87340639,2932.6,2931.7,0.1404173]
[1769165972173,0.87340639,2932.5,2931.7,0.1404173]
[1769165972373,0.00296727,2932.8,2931.7,0.1404173]
[1769165972571,0.87339018,2932.7,2931.7,0.1404173]
[1769165972767,0.87339018,2932.6,2931.7,0.1404173]
[1769165972971,0.00296727,2932.8,2931.7,0.1404173]
[1769165973269,0.87338998,2932.7,2931.7,0.1404173]
[1769165973470,0.87338998,2932.6,2931.7,0.1404173]
[1769165973671,0.00296727,2932.8,2931.7,0.1404173]
[1769165973867,0.87337543,2932.7,2931.7,0.1404173]
[1769165974063,0.87337543,2932.6,2931.7,0.1404173]
[1769165974267,0.00296727,2932.8,2931.7,0.1404173]
[1769165974470,0.87333297,2932.7,2931.7,0.1404173]
[1769165974672,0.87333297,2932.6,2931.7,0.1404173]
[1769165974870,0.00296727,2932.8,2931.7,0.1404173]
[1769165975071,0.87333155,2932.7,2931.7,0.1404173]
[1769165975276,0.87333155,2932.6,2931.7,0.1404173]
[1769165975573,0.00296727,2932.8,2931.6,0.00511718]
[1769165975782,0.8733307,2932.7,2931.6,0.00511718]
[1769165975985,0.00296727,2932.8,2931.6,0.00511718]
[1769165975986,0.8733307,2932.6,2931.6,0.00511718]
[1769165976174,0.00296727,2932.8,2931.6,0.00511718]
[1769165976474,0.15143651,2932.8,2931.6,0.00511718]
[1769165976777,0.15143651,2932.8,2931.6,2.41368069]
[1769165977578,0.15143651,2932.8,2931.6,0.00511718]
[1769165978175,0.15143651,2932.8,2931.6,2.41368069]
[1769165978475,0.15143651,2932.8,2931.6,0.00511718]
[1769165979380,0.15143651,2932.8,2931.6,2.41368069]
[1769165979574,0.15143651,2932.8,2931.6,0.00511718]
[1769165981184,0.15143651,2932.8,2931.6,2.41368069]
[1769165987390,0.15143651,2932.8,2931.6,0.00511718]
[1769165988689,0.15143651,2932.8,2931.6,2.41368069]
[1769165989090,0.15143651,2932.8,2931.6,0.00511718]
[1769165989291,0.15143651,2932.8,2931.6,2.41368069]
[1769165991604,0.87372929,2932.7,2931.6,2.41368069]
[1769165991796,0.15143651,2932.8,2931.6,2.41368069]
[1769165992297,0.87383393,2932.7,2931.6,2.41368069]
[1769165992500,0.15143651,2932.8,2931.6,2.41368069]
[1769165992699,0.87384097,2932.7,2931.6,2.41368069]
[1769165993000,0.15143651,2932.8,2931.6,2.41368069]
[1769165993201,0.87383389,2932.7,2931.6,2.41368069]
[1769165993402,0.15143651,2932.8,2931.6,2.41368069]
[1769165993602,0.87397424,2932.7,2931.6,2.41368069]
[1769165993804,0.15143651,2932.8,2931.6,2.41368069]
[1769165994005,0.87397951,2932.7,2931.6,2.41368069]
[1769165994203,0.15143651,2932.8,2931.6,2.41368069]
[1769165994407,0.87380581,2932.7,2931.6,2.41368069]
[1769165994609,0.15143651,2932.8,2931.6,2.41368069]
[1769165994902,0.87379866,2932.7,2931.6,2.41368069]
[1769165995202,0.15143651,2932.8,2931.6,2.41368069]
[1769165995404,0.87379941,2932.7,2931.8,0.13685769]
[1769165995603,0.00296727,2932.8,2931.9,0.13685769]
[1769165997003,0.00296727,2932.8,2931.9,0.91122997]
[1769166003917,0.00296727,2932.8,2931.7,2.40856351]
[1769166004124,0.87359484,2932.7,2931.6,3.32491066]
[1769166004424,0.00296727,2932.8,2931.9,0.91122997]
[1769166008621,0.00296727,2932.8,2931.9,1.06120435]
[1769166009426,0.00296727,2932.8,2931.9,0.14997438]
[1769166010924,0.00296727,2932.8,2932.0,0.91122997]
[1769166012729,0.00296727,2932.8,2931.8,2.40856351]
[1769166013030,0.00296727,2932.8,2931.7,0.91122997]
[1769166013031,0.873558,2932.7,2931.7,0.91122997]
[1769166013329,0.00296727,2932.8,2931.7,0.91122997]
[1769166013533,0.87353681,2932.7,2931.7,0.91122997]
[1769166013728,0.00296727,2932.8,2931.7,0.91122997]
[1769166014030,0.87353837,2932.7,2931.7,0.91122997]
[1769166014234,0.00296727,2932.8,2931.7,0.91122997]
[1769166014438,0.87351968,2932.7,2931.7,0.91122997]
[1769166014641,0.00296727,2932.8,2931.7,0.91122997]
[1769166014936,0.87351969,2932.7,2931.7,0.91122997]
[1769166015231,0.00296727,2932.8,2931.7,0.91122997]
[1769166015432,0.87350093,2932.7,2931.7,0.91122997]
[1769166015633,0.00296727,2932.8,2931.7,0.91122997]
[1769166015830,0.87350091,2932.7,2931.7,0.91122997]
[1769166016032,0.00296727,2932.8,2931.7,0.91122997]
[1769166016225,0.87349087,2932.7,2931.7,0.91122997]
[1769166016426,0.87349087,2932.6,2931.7,0.91122997]
[1769166016635,0.00296727,2932.8,2931.7,0.91122997]
[1769166016835,0.87348398,2932.7,2931.7,0.91122997]
[1769166017038,0.87348398,2932.6,2931.7,0.91122997]
[1769166017237,0.00296727,2932.8,2931.7,0.91122997]
[1769166017538,0.87346847,2932.7,2931.7,0.91122997]
[1769166017732,0.87346847,2932.6,2931.7,0.91122997]
[1769166018036,0.00296727,2932.8,2931.7,0.91122997]
[1769166018335,0.87346157,2932.7,2931.7,0.91122997]
[1769166018534,0.87346157,2932.6,2931.7,0.91122997]
[1769166018732,0.00296727,2932.8,2931.7,0.91122997]
[1769166018933,0.87345552,2932.7,2931.7,0.91122997]
[1769166019135,0.87345552,2932.6,2931.7,0.91122997]
[1769166019335,0.00296727,2932.8,2931.7,0.91122997]
[1769166019539,0.87344304,2932.7,2931.7,0.91122997]
[1769166019736,0.87344304,2932.6,2931.7,0.91122997]
[1769166019936,0.00296727,2932.8,2931.7,0.91122997]
[1769166020234,0.87344308,2932.7,2931.7,0.91122997]
[1769166020428,0.87344308,2932.6,2931.7,0.91122997]
[1769166020631,0.00296727,2932.8,2931.7,0.91122997]
[1769166020832,0.87343139,2932.7,2931.7,0.91122997]
[1769166021033,0.87343139,2932.6,2931.7,0.91122997]
[1769166021235,0.00296727,2932.8,2931.7,0.91122997]
[1769166021438,0.87341901,2932.7,2931.7,0.91122997]
[1769166021637,0.87341901,2932.6,2931.7,0.91122997]
[1769166021836,0.00296727,2932.8,2931.7,0.91122997]
[1769166022039,0.87341892,2932.7,2931.7,0.91122997]
[1769166022234,0.87341892,2932.6,2931.7,0.91122997]
[1769166022429,0.87343465,2932.5,2931.7,0.91122997]
[1769166022637,0.00296727,2932.8,2931.7,0.91122997]
[1769166022840,0.8734294,2932.7,2931.7,0.91122997]
[1769166023038,0.8734294,2932.6,2931.7,0.91122997]
[1769166023331,0.8734294,2932.5,2931.7,0.91122997]
[1769166023538,0.00296727,2932.8,2931.7,0.91122997]
[1769166023738,0.87341095,2932.7,2931.7,0.91122997]
[1769166023938,0.87341095,2932.6,2931.7,0.91122997]
[1769166024132,0.87341095,2932.5,2931.7,0.91122997]
[1769166024336,0.00296727,2932.8,2931.7,0.91122997]
[1769166024545,0.8740377,2932.7,2931.7,0.91122997]
[1769166024737,0.8740377,2932.6,2931.7,0.91122997]
[1769166024937,0.8740377,2932.5,2931.7,0.91122997]
[1769166025138,0.00296727,2932.8,2931.7,0.91122997]
[1769166025341,0.87403087,2932.7,2931.7,0.91122997]
[1769166025542,0.87403087,2932.6,2931.7,0.91122997]
[1769166025743,0.87403087,2932.5,2931.7,0.91122997]
[1769166025946,0.00296727,2932.8,2931.7,0.91122997]
[1769166026145,0.87401826,2932.7,2931.7,0.91122997]
[1769166026446,0.00296727,2932.8,2931.7,0.91122997]
[1769166026648,0.87407014,2932.7,2931.7,0.91122997]
[1769166026850,0.00296727,2932.8,2931.7,0.91122997]
[1769166027053,0.87407012,2932.7,2931.6,0.00511718]
[1769166027350,0.87407012,2932.6,2931.6,0.00511718]
[1769166027550,0.87407012,2932.5,2931.6,0.00511718]
[1769166027737,0.87407012,2932.4,2931.6,0.00511718]
[1769166027941,1.22832461,2932.8,2931.6,0.00511718]
[1769166028142,0.87416404,2932.7,2931.6,0.00511718]
[1769166028344,0.87416404,2932.6,2931.6,0.00511718]
[1769166028545,0.87416404,2932.5,2931.6,0.00511718]
[1769166028745,1.22832461,2932.8,2931.6,0.00511718]
[1769166028946,0.87401202,2932.7,2931.6,0.00511718]
[1769166029146,0.87401202,2932.6,2931.6,0.00511718]
[1769166029442,0.87401202,2932.5,2931.6,0.00511718]
[1769166029648,1.22832461,2932.8,2931.6,0.00511718]
[1769166029948,0.8739081,2932.7,2931.6,0.00511718]
[1769166030147,0.8739081,2932.6,2931.6,0.00511718]
[1769166030345,0.8739081,2932.5,2931.6,0.00511718]
[1769166030542,1.22832461,2932.8,2931.6,0.00511718]
[1769166030743,1.01726018,2932.7,2931.6,0.00511718]
[1769166030944,0.87382281,2932.6,2931.6,0.00511718]
[1769166031146,0.87382281,2932.5,2931.6,0.00511718]
[1769166031449,0.91122997,2931.9,2930.7,6.83414523]
[1769166031643,0.87392103,2931.8,2930.7,0.14997438]
[1769166031841,0.87392103,2931.7,2930.7,0.14997438]
[1769166032037,0.87392103,2931.6,2930.7,0.14997438]
[1769166032248,1.05466734,2931.9,2930.7,0.14997438]
[1769166032446,0.87295695,2931.8,2930.7,0.14997438]
[1769166032642,0.87295695,2931.7,2930.7,0.14997438]
[1769166032841,0.14343737,2931.9,2930.7,0.14997438]
[1769166033043,0.87295695,2931.8,2930.7,0.14997438]
[1769166033243,0.14343737,2931.9,2930.7,0.14997438]
[1769166033444,0.87234431,2931.8,2930.7,0.14997438]
[1769166033644,0.14343737,2931.9,2930.7,0.14997438]
[1769166033850,0.87234428,2931.8,2930.7,0.14997438]
[1769166034043,0.14343737,2931.9,2930.7,0.14997438]
[1769166034243,0.87187543,2931.8,2930.7,0.14997438]
[1769166034443,0.14343737,2931.9,2930.7,0.14997438]
[1769166034645,0.8718755,2931.8,2930.7,0.14997438]
[1769166034847,0.14343737,2931.9,2930.7,0.14997438]
[1769166039750,1.05466734,2931.9,2930.5,0.91122997]
[1769166040049,0.14691213,2931.8,2930.5,0.91122997]
[1769166043242,0.17583718,2932.4,2931.4,0.91122997]
[1769166043556,0.17583718,2932.4,2930.9,0.14170231]
[1769166043557,0.87015621,2932.3,2931.1,0.91122997]
[1769166043748,0.14691213,2932.2,2931.1,0.91122997]
[1769166043947,0.14691213,2932.2,2930.9,0.14170231]
[1769166044148,1.0581421,2932.1,2930.9,0.00428299]
[1769166044350,0.14691213,2932.0,2930.9,0.00428299]
[1769166053050,0.17073,2932.2,2931.1,0.91122997]
[1769166053253,0.87111712,2932.1,2931.1,0.91122997]
[1769166053460,0.87111712,2932.0,2931.1,0.91122997]
[1769166053654,0.17073,2932.2,2931.1,0.91122997]
[1769166053859,0.87111666,2932.1,2931.1,0.91122997]
[1769166054054,0.87111666,2932.0,2931.1,0.91122997]
[1769166054256,0.17073,2932.2,2931.1,0.91122997]
[1769166054454,0.87199681,2932.1,2931.1,0.91122997]
[1769166054650,0.87199681,2932.0,2931.1,0.91122997]
[1769166054855,0.17073,2932.2,2931.1,0.91122997]
[1769166055056,0.87199669,2932.1,2931.1,0.91122997]
[1769166055258,0.87199669,2932.0,2931.1,0.91122997]
[1769166055458,0.17073,2932.2,2931.1,0.91122997]
[1769166055657,0.87226754,2932.1,2931.1,0.91122997]
[1769166055958,0.00511718,2932.4,2931.4,0.91122997]
[1769166056159,0.87219616,2932.3,2931.4,0.91122997]
[1769166056456,0.87219616,2932.2,2931.4,0.91122997]
[1769166056662,0.00511718,2932.4,2931.4,0.91122997]
[1769166056959,0.87249984,2932.3,2931.1,0.13741932]
[1769166057152,0.87249984,2932.2,2931.1,0.13741932]
[1769166057352,0.87249984,2932.1,2931.1,0.13741932]
[1769166057556,0.00511718,2932.4,2931.1,0.13741932]
[1769166057758,0.87285243,2932.3,2931.1,0.13741932]
[1769166057957,0.87285243,2932.2,2931.1,0.13741932]
[1769166058156,0.00511718,2932.4,2931.1,0.13741932]
[1769166058357,0.87298921,2932.3,2931.1,0.13741932]
[1769166058560,0.87298921,2932.2,2931.1,0.13741932]
[1769166058760,0.00511718,2932.4,2931.1,0.13741932]
[1769166058958,0.87303888,2932.3,2931.1,0.13741932]
[1769166059163,0.87303888,2932.2,2931.1,0.13741932]
[1769166059461,0.00511718,2932.4,2931.1,0.13741932]
[1769166059654,0.87325278,2932.3,2931.1,0.13741932]
[1769166059857,0.00511718,2932.4,2931.1,0.13741932]
[1769166059858,0.87325278,2932.2,2931.1,0.13741932]
[1769166060160,0.87357244,2932.1,2931.1,0.13741932]
[1769166060366,0.00511718,2932.4,2931.1,0.13741932]
[1769166060558,0.87357172,2932.3,2931.1,0.13741932]
[1769166060759,0.87357172,2932.2,2931.1,0.13741932]
[1769166060960,0.87357172,2932.1,2931.1,0.13741932]
[1769166061160,0.00511718,2932.4,2931.1,0.13741932]
[1769166061360,0.87407017,2932.3,2931.1,0.13741932]
[1769166061665,0.87407017,2932.2,2931.1,0.13741932]
[1769166061868,0.87407017,2932.1,2931.1,0.13741932]
[1769166062166,0.00511718,2932.4,2931.1,0.13741932]
[1769166062357,0.87390692,2932.3,2931.1,0.13741932]
[1769166062555,0.87390692,2932.2,2931.1,0.13741932]
[1769166062752,0.87390692,2932.1,2931.1,0.13741932]
[1769166062965,0.00511718,2932.4,2931.1,0.13741932]
[1769166063166,0.87390864,2932.3,2931.1,0.13741932]
[1769166063355,0.87390864,2932.2,2931.1,0.13741932]
[1769166063560,0.87390864,2932.1,2931.1,0.13741932]
[1769166063761,0.00511718,2932.4,2931.1,0.13741932]
[1769166064056,0.8738284,2932.3,2931.1,0.13741932]
[1769166064260,0.8738284,2932.2,2931.1,0.13741932]
[1769166064468,0.8738284,2932.1,2931.1,0.13741932]
[1769166064763,0.00511718,2932.4,2931.1,0.13741932]
[1769166064963,0.87376311,2932.3,2931.1,0.13741932]
[1769166065160,0.87376311,2932.2,2931.1,0.13741932]
[1769166065360,0.87376311,2932.1,2931.1,0.13741932]
[1769166065561,0.00511718,2932.4,2931.1,0.13741932]
[1769166065865,0.87371286,2932.3,2931.1,0.13741932]
[1769166066067,0.87371286,2932.2,2931.1,0.13741932]
[1769166066268,0.87371286,2932.1,2931.1,0.13741932]
[1769166066462,0.00511718,2932.4,2931.1,0.13741932]
[1769166066657,0.87367361,2932.3,2931.1,0.13741932]
[1769166066865,0.87367361,2932.2,2931.1,0.13741932]
[1769166067062,0.00511718,2932.4,2931.1,0.13741932]
[1769166067270,0.87367158,2932.3,2931.1,0.13741932]
[1769166067467,0.87367158,2932.2,2931.1,0.13741932]
[1769166067668,0.00511718,2932.4,2931.1,0.13741932]
[1769166067864,0.87364935,2932.3,2931.1,0.13741932]
[1769166068064,0.87364935,2932.2,2931.1,0.13741932]
[1769166068264,0.00511718,2932.4,2931.1,0.13741932]
[1769166068462,0.87363337,2932.3,2931.1,0.13741932]
[1769166068765,0.87363337,2932.2,2931.1,0.13741932]
[1769166069066,0.00511718,2932.4,2931.1,0.13741932]
[1769166069267,0.87363621,2932.3,2931.1,0.13741932]
[1769166069574,0.87363621,2932.2,2931.1,0.13741932]
[1769166069773,0.00511718,2932.4,2931.1,0.13741932]
[1769166069970,0.87362858,2932.3,2931.1,0.13741932]
[1769166070272,0.00511718,2932.4,2931.1,0.13741932]
[1769166070273,0.87362858,2932.2,2931.1,0.13741932]
[1769166070478,0.00511718,2932.4,2931.1,0.13741932]
[1769166070670,0.87367928,2932.3,2931.1,0.13741932]
[1769166070872,0.87367928,2932.2,2931.1,0.13741932]
[1769166071076,0.00511718,2932.4,2931.1,0.13741932]
[1769166071275,0.87373985,2932.3,2931.1,0.13741932]
[1769166071475,0.00511718,2932.4,2931.1,0.13741932]
[1769166071776,0.87368356,2932.3,2931.1,0.13741932]
[1769166071983,0.15531429,2932.4,2931.1,0.13741932]
[1769166072179,0.87370967,2932.3,2931.1,0.13741932]
[1769166072378,0.15531429,2932.4,2931.1,0.13741932]
[1769166072679,0.87374841,2932.3,2931.1,0.13741932]
[1769166072880,0.15531429,2932.4,2931.1,0.13741932]
[1769166073176,0.87385095,2932.3,2931.1,0.13741932]
[1769166073383,0.00511718,2932.4,2931.1,0.13741932]
[1769166075583,0.15531429,2932.4,2931.1,0.13741932]
[1769166075775,0.15019711,2932.2,2930.9,0.00428299]
[1769166075977,0.15019711,2932.0,2930.9,0.00428299]
[1769166076177,0.15019711,2931.8,2930.9,0.00428299]
[1769166079583,0.15019711,2931.6,2930.4,0.14972909]
[1769166080683,0.15019711,2931.6,2930.4,0.15403318]
[1769166081086,0.15019711,2931.6,2930.4,0.00430409]
[1769166083185,0.17075,2931.8,2930.4,0.15403318]
[1769166083384,0.8733657,2931.7,2930.4,0.15403318]
[1769166083586,0.17075,2931.8,2930.4,0.15403318]
[1769166083783,0.8733683,2931.7,2930.4,0.15403318]
[1769166084080,0.17075,2931.8,2930.4,0.15403318]
[1769166086985,0.15019711,2932.0,2930.4,0.15403318]
[1769166087191,0.8726081,2931.9,2930.7,0.14972909]
[1769166087380,0.32091711,2932.3,2930.7,0.14972909]
[1769166087586,1.02273434,2932.2,2930.7,0.14972909]
[1769166087786,0.87253723,2932.1,2930.7,0.14972909]
[1769166088090,0.17072,2932.3,2930.9,0.14972909]
[1769166088894,0.17072,2932.3,2931.0,0.91152818]
[1769166089090,0.00511718,2932.4,2931.5,0.14972909]
[1769166089291,0.00296727,2932.8,2931.5,0.14972909]
[1769166089490,0.00296727,2932.8,2931.6,0.14972909]
[1769166090095,0.00296727,2932.8,2931.6,2.5582926]
[1769166090396,0.00296727,2932.8,2931.7,0.14972909]
[1769166090788,0.00296727,2932.8,2931.9,0.00511718]
[1769166094300,0.15186256,2932.8,2931.9,0.00511718]
[1769166098699,0.15401247,2932.6,2930.9,0.14091727]
[1769166099897,0.14889529,2932.5,2930.9,0.14091727]
[1769166104804,0.17071,2932.5,2930.9,0.14091727]
[1769166105108,0.14889529,2932.4,2930.9,0.14091727]
[1769166110217,0.14889529,2932.1,2930.5,0.14091727]
[1769166110410,0.14889529,2932.0,2930.5,0.14091727]
[1769166117009,0.14889529,2932.5,2930.9,0.14091727]
[1769166117210,0.87142497,2932.4,2930.9,0.14091727]
[1769166117419,0.31960529,2932.5,2930.9,0.14091727]
[1769166117619,0.87148235,2932.4,2930.9,0.14091727]
[1769166117819,0.31960529,2932.5,2930.9,0.14091727]
[1769166118021,0.87149295,2932.4,2930.9,0.14091727]
[1769166118327,0.87149735,2932.3,2930.9,0.14091727]
[1769166118519,0.14889529,2932.4,2930.9,0.14091727]
[1769166118817,0.87148465,2932.3,2930.9,0.14091727]
[1769166119019,0.14889529,2932.4,2931.2,0.91167767]
[1769166119920,0.87148296,2932.3,2931.2,0.91167767]
[1769166120116,0.14889529,2932.4,2931.2,0.91167767]
[1769166120421,0.87157068,2932.3,2931.2,0.91167767]
[1769166120719,0.14889529,2932.4,2931.2,0.91167767]
[1769166120920,0.14889529,2932.2,2930.9,0.91167767]
[1769166123921,0.17072,2932.4,2931.2,0.91167767]
[1769166124119,0.87213419,2932.3,2931.2,0.91167767]
[1769166124417,0.87213419,2932.2,2931.2,0.91167767]
[1769166124619,0.17072,2932.4,2931.2,0.91167767]
[1769166124816,0.87234678,2932.3,2931.2,0.91167767]
[1769166125016,0.87234678,2932.2,2931.2,0.91167767]
[1769166125318,0.17072,2932.4,2931.2,0.91167767]
[1769166125518,0.87260405,2932.3,2931.2,0.91167767]
[1769166125716,0.17072,2932.4,2931.2,0.91167767]
[1769166125717,0.87260405,2932.2,2931.2,0.91167767]
[1769166125915,0.17072,2932.4,2931.2,0.91167767]
[1769166126116,0.87260408,2932.3,2931.2,0.91167767]
[1769166126322,0.87260408,2932.2,2931.2,0.91167767]
[1769166126619,0.31752599,2932.4,2931.2,0.91167767]
[1769166126919,0.87289451,2932.3,2931.2,0.91167767]
[1769166127121,0.87289451,2932.2,2931.2,0.91167767]
[1769166127318,0.87289451,2932.1,2931.2,0.91167767]
[1769166127519,0.31752599,2932.4,2931.2,0.91167767]
[1769166127718,0.87326185,2932.3,2931.2,0.91167767]
[1769166127922,0.87326185,2932.2,2931.2,0.91167767]
[1769166128122,0.31752599,2932.4,2931.2,0.91167767]
[1769166128416,0.14680599,2932.2,2930.5,4.67224433]
[1769166128615,0.91167767,2930.7,2929.5,0.15189265]
[1769166128816,0.8737643,2930.6,2929.5,0.15189265]
[1769166129118,0.38706507,2930.5,2929.5,0.15189265]
[1769166129310,0.14680599,2931.5,2930.0,1.05023388]
[1769166129622,0.91762739,2931.4,2930.1,4.27991143]
[1769166129917,0.91762739,2931.3,2930.0,1.05349554]
[1769166130121,0.91762739,2931.2,2930.0,1.05349554]
[1769166130321,0.91762739,2931.1,2930.0,1.05349554]
[1769166130621,0.14975729,2931.5,2930.0,1.05349554]
[1769166130822,0.92560763,2931.4,2930.0,1.05349554]
[1769166131020,0.92560763,2931.3,2930.0,1.05349554]
[1769166131220,0.92560763,2931.2,2930.0,1.05349554]
[1769166131421,0.14975729,2931.5,2930.0,1.05349554]
[1769166131622,0.92394466,2931.4,2930.0,5.33340697]
[1769166131816,0.92394466,2931.3,2930.0,5.33340697]
[1769166132016,0.92394466,2931.2,2930.0,5.33340697]
[1769166132217,0.14975729,2931.5,2930.0,5.33340697]
[1769166132421,0.92365558,2931.4,2930.0,5.33340697]
[1769166132623,0.92365558,2931.3,2930.1,4.27991143]
[1769166132823,0.92365558,2931.2,2930.0,0.00326166]
[1769166133025,0.14680599,2931.3,2930.0,0.00326166]
[1769166133227,0.92344556,2931.2,2930.0,0.00326166]
[1769166133521,0.14680599,2931.3,2930.0,0.00326166]
[1769166133721,0.9234263,2931.2,2930.0,0.00326166]
[1769166133921,0.14680599,2931.3,2930.0,0.00326166]
[1769166135124,0.14680599,2931.3,2930.0,4.28317309]
[1769166139420,0.92281778,2931.2,2930.0,4.28317309]
[1769166139620,0.14680599,2931.3,2930.0,4.28317309]
[1769166139822,0.92281778,2931.2,2930.0,4.28317309]
[1769166140023,0.14680599,2931.3,2930.0,4.28317309]
[1769166140223,0.92281778,2931.2,2930.0,4.28317309]
[1769166140427,0.14680599,2931.3,2930.1,4.27991143]
[1769166140627,0.92282752,2931.2,2930.0,4.28317309]
[1769166140829,0.14680599,2931.3,2930.0,4.28317309]
[1769166141026,0.92282764,2931.2,2930.0,4.28317309]
[1769166141227,0.14680599,2931.3,2930.1,4.27991143]
[1769166141429,1.30136826,2931.2,2930.0,4.28317309]
[1769166141628,0.3785998,2931.1,2930.0,4.28317309]
[1769166141831,0.14680599,2931.3,2930.0,4.28317309]
[1769166142029,1.30136804,2931.2,2930.1,4.27991143]
[1769166142223,0.37859974,2931.1,2930.1,4.27991143]
[1769166142419,0.14680599,2931.3,2930.1,4.27991143]
[1769166142625,1.30131461,2931.2,2930.1,4.27991143]